bitfinex-derivatives/quotes_ETHF0:USTF0_20250730
["timestamp","ask_amount","ask_price","bid_price","bid_amount"]
[1753887812171,3.5147,3808.5,3808.4,0.52515]
[1753887812666,0.52516,3808.4,3808.1,0.52518]
[1753887812873,1.1265,3808.3,3808.1,0.52518]
[1753887813069,0.8755,3808.2,3808.1,1.55898]
[1753887813669,1.5127,3808.3,3808.1,2.49158]
[1753887813871,1.5127,3808.3,3808.2,1.0338]
[1753887814474,0.8755,3807.8,3807.3,38.7214]
[1753887814664,1.1265,3807.7,3807.4,0.9034]
[1753887814870,2.3882,3807.6,3807.5,0.65567]
[1753887815068,2.3882,3807.6,3807.5,0.1304]
[1753887815671,3.5147,3807.4,3807.3,37.818]
[1753887815865,3.5147,3807.3,3807.2,0.01838597]
[1753887816273,44.3147,3807.3,3807.2,0.01838597]
[1753887817265,2.6392,3808.1,3807.4,0.52528]
[1753887817466,2.002,3808.0,3807.2,0.01838597]
[1753887817669,1.1265,3807.8,3807.2,0.01838597]
[1753887817867,40.8,3807.9,3807.3,0.5253]
[1753887818066,1.5127,3807.5,3807.2,1.57748597]
[1753887818273,2.3882,3807.3,3807.2,1.57748597]
[1753887818468,3.5147,3807.3,3807.2,0.67408597]
[1753887818872,3.5147,3807.3,3807.2,0.01838597]
[1753887823777,3.5147,3807.3,3807.2,0.13028597]
[1753887823982,3.5147,3807.3,3807.2,1.00898597]
[1753887824280,2.3882,3807.3,3807.2,1.94158597]
[1753887824581,3.5147,3807.7,3807.2,1.94158597]
[1753887824776,1.1265,3807.6,3807.3,0.9906]
[1753887824983,0.52515,3808.5,3807.7,0.1119]
[1753887825282,3.5147,3808.3,3808.2,0.1119]
[1753887825579,3.5147,3808.3,3808.2,0.9906]
[1753887827588,1.1265,3809.2,3809.0,0.52506]
[1753887827788,1.1265,3809.3,3808.7,0.1119]
[1753887827983,1.1265,3809.1,3808.4,0.52515]
[1753887828187,0.52509,3808.9,3808.6,0.52512]
[1753887828392,3.5147,3808.7,3808.3,0.1119]
[1753887828602,0.52508,3808.9,3808.4,0.52515]
[1753887828893,3.5147,3809.2,3808.4,1.42477]
[1753887829093,1.1265,3809.1,3808.3,1.31291]
[1753887829394,3.5147,3809.0,3808.9,0.9906]
[1753887829580,3.5147,3809.0,3808.9,0.1119]
[1753887830184,0.52508,3808.9,3808.5,0.52513]
[1753887830385,2.3882,3808.8,3808.7,0.1119]
[1753887830581,2.3882,3808.8,3808.7,0.9906]
[1753887830893,1.1265,3808.9,3808.8,0.52509]
[1753887831089,1.1265,3808.9,3808.8,0.9906]
[1753887831593,3.5147,3808.9,3808.8,0.1119]
[1753887832193,0.52509,3808.8,3808.5,0.52512]
[1753887832389,1.3127,3809.0,3807.6,3.00215623]
[1753887832590,0.52517,3808.3,3807.9,0.52521]
[1753887832790,3.5147,3808.0,3807.9,0.52522]
[1753887834082,2.3882,3807.9,3807.8,0.52523]
[1753887834285,3.5147,3807.8,3807.6,19.251]
[1753887834490,2.6392,3807.3,3807.2,0.54369597]
[1753887834694,3.5147,3807.3,3807.2,0.54369597]
[1753887835093,3.5147,3807.3,3807.2,0.01838597]
[1753887837997,3.5147,3807.3,3807.2,1.00898597]
[1753887838297,3.5147,3807.3,3807.2,0.01838597]
[1753887843091,3.5088095,3807.3,3807.2,0.01838597]
[1753887844893,40.8,3807.8,3807.4,0.52528]
[1753887845095,0.52524,3807.7,3807.5,0.52526]
[1753887845288,1.1136,3807.6,3807.5,0.52526]
[1753887845489,2.6157,3807.6,3807.5,0.52526]
[1753887845694,3.4612,3807.6,3807.5,0.52526]
[1753887846792,40.8,3807.8,3807.2,0.01838597]
[1753887846995,3.4612,3807.5,3807.4,0.52527]
[1753887847397,3.4612,3807.5,3807.4,0.62207]
[1753887847992,3.4612,3807.5,3807.4,1.47267]
[1753887848990,2.3476,3807.9,3807.8,0.52523]
[1753887849198,1.5021,3808.2,3808.0,0.5252]
[1753887849491,3.4612,3808.2,3808.1,0.9474]
[1753887849791,44.2612,3808.2,3808.1,0.9474]
[1753887850195,3.4612,3808.2,3808.1,0.9474]
[1753887850492,2.6157,3808.5,3808.1,1.7965]
[1753887850686,2.6157,3808.5,3807.8,1.31307]
[1753887850687,3.4612,3808.4,3808.3,0.52515]
[1753887850887,3.4612,3808.4,3808.3,0.62195]
[1753887851299,3.4612,3808.4,3808.3,1.47255]
[1753887851496,0.52509,3808.8,3808.3,0.9474]
[1753887851696,1.1136,3808.7,3808.4,0.8491]
[1753887851901,3.4612,3808.6,3808.5,0.0968]
[1753887852193,1.1136,3808.1,3808.0,0.52519]
[1753887852398,3.4612,3808.1,3808.0,0.52519]
[1753887852787,0.52518,3808.2,3807.9,0.52521]
[1753887852990,2.3476,3807.9,3807.5,0.0968]
[1753887853395,1.1136,3807.8,3807.0,19.235]
[1753887853595,1.1136,3807.6,3807.2,0.54368597]
[1753887853791,3.4612,3807.9,3807.5,0.52526]
[1753887853993,1.5021,3807.9,3807.5,0.52526]
[1753887854304,3.4612,3807.6,3807.5,0.52526]
[1753887854504,3.4612,3807.6,3807.5,0.62206]
[1753887854699,2.3476,3807.6,3807.5,2.32176]
[1753887854904,2.3476,3807.9,3807.8,0.62202]
[1753887855300,2.3476,3807.9,3807.8,0.0968]
[1753887855496,3.4612,3807.9,3807.8,0.0968]
[1753887856003,1.5021,3808.2,3807.8,0.0968]
[1753887856299,2.3476,3808.2,3808.1,2.32168]
[1753887856698,3.4612,3808.5,3808.4,1.47255]
[1753887856894,0.8455,3808.5,3808.4,1.47255]
[1753887857098,0.8455,3808.7,3808.6,0.52511]
[1753887857295,1.1136,3808.9,3808.8,0.52509]
[1753887857506,3.4612,3809.1,3809.0,0.52506]
[1753887857702,3.66096674,3809.1,3808.9,0.52507]
[1753887857907,44.46096674,3809.0,3808.9,0.62187]
[1753887858307,3.66096674,3809.0,3808.9,0.62187]
[1753887858509,3.4612,3809.0,3808.9,0.62187]
[1753887859800,2.3476,3809.0,3808.9,1.47247]
[1753887860109,3.4612,3809.0,3808.9,1.47247]
[1753887861105,3.4612,3809.0,3808.9,0.62187]
[1753887861309,0.8455,3809.0,3808.9,1.47247]
[1753887861504,3.4612,3809.4,3809.3,1.47242]
[1753887861705,3.66795804,3809.4,3809.3,2.32152]
[1753887861907,0.20675804,3809.4,3809.3,2.32152]
[1753887862302,0.52499,3809.5,3809.0,0.0968]
[1753887862509,0.73175744,3809.4,3809.0,0.9474]
[1753887862707,2.3476,3809.2,3809.1,0.52504]
[1753887863011,3.4612,3809.2,3809.1,1.47244]
[1753887863404,0.2,3809.9,3809.8,1.7965]
[1753887863607,0.40669922,3809.9,3809.8,1.7965]
[1753887864917,3.4612,3809.7,3809.4,0.8491]
[1753887865109,3.4612,3809.5,3809.4,0.9459]
[1753887865311,3.4612,3809.5,3809.1,0.62184]
[1753887865312,3.4612,3809.3,3809.1,0.62184]
[1753887865514,3.4612,3809.2,3809.1,0.0968]
[1753887865816,3.98619,3809.6,3809.3,0.52502]
[1753887866015,1.1136,3809.5,3809.3,1.47242]
[1753887866216,3.4612,3809.4,3809.3,1.47242]
[1753887866717,3.98622,3809.4,3809.1,0.52504]
[1753887866912,0.52502,3809.4,3809.1,0.52504]
[1753887867218,3.4612,3809.2,3809.1,0.0968]
[1753887867916,0.52499,3809.6,3809.1,5.0968]
[1753887868107,0.52499,3809.6,3808.9,1.47942526]
[1753887868421,2.6157,3809.8,3809.7,0.52497]
[1753887868611,3.4612,3809.8,3809.7,0.0579]
[1753887869110,0.525,3809.5,3808.8,1.31274]
[1753887869313,2.3519,3809.4,3809.2,0.52503]
[1753887869506,3.4089,3809.3,3809.2,0.52503]
[1753887869706,0.52502,3809.4,3809.1,0.52504]
[1753887869911,3.4089,3809.2,3809.1,0.58294]
[1753887870606,41.0,3809.9,3809.8,0.52495]
[1753887870806,3.4089,3809.8,3809.7,0.52496]
[1753887871205,1.4225,3809.8,3809.7,1.38176]
[1753887871412,1.257,3809.9,3809.8,1.7586]
[1753887871612,0.2,3809.9,3809.8,1.7586]
[1753887872116,2.5519,3809.9,3809.8,1.7586]
[1753887872512,3.4089,3809.6,3809.5,0.52499]
[1753887872712,3.4089,3809.6,3809.5,0.58289]
[1753887872915,2.3519,3809.6,3809.5,2.28359]
[1753887873116,3.4089,3809.6,3809.5,1.38179]
[1753887874620,3.4089,3809.6,3809.5,2.28359]
[1753887874821,3.4089,3809.6,3809.5,1.38179]
[1753887875517,3.4089,3809.6,3809.5,2.28359]
[1753887876327,3.6089,3809.9,3809.8,0.52495]
[1753887876526,3.6089,3809.9,3809.8,1.38175]
[1753887877323,3.4089,3809.8,3809.7,0.52496]
[1753887878228,2.3519,3809.8,3809.7,2.28356]
[1753887878420,0.2,3809.9,3809.7,0.52496]
[1753887878727,0.2,3809.9,3809.8,3.3953]
[1753887879030,3.6484,3810.6,3810.5,3.92016]
[1753887879425,40.8,3810.6,3810.5,3.92016]
[1753887879625,2.87667,3811.2,3810.8,0.5248]
[1753887879626,3.2469,3810.9,3810.8,0.5248]
[1753887879923,3.2469,3810.8,3810.7,1.09642]
[1753887880122,5.5988,3810.8,3810.7,1.15432]
[1753887880626,5.5988,3810.8,3810.7,1.09642]
[1753887880827,3.4089,3810.7,3809.8,0.0579]
[1753887881028,2.1899,3810.2,3810.1,0.5249]
[1753887881228,5.5988,3810.1,3810.0,0.52492]
[1753887881424,5.5988,3810.5,3810.4,1.544]
[1753887881622,5.5988,3810.5,3810.4,2.92567]
[1753887881823,5.5988,3810.5,3810.4,2.4008]
[1753887882829,40.8,3810.9,3810.1,2.1268]
[1753887882830,5.5988,3810.2,3810.1,2.1268]
[1753887883127,3.4089,3810.8,3810.5,1.7007]
[1753887883428,3.4089,3810.2,3810.1,0.52491]
[1753887883824,3.4089,3810.2,3810.1,1.38171]
[1753887884030,1.4225,3810.6,3810.5,0.52485]
[1753887884232,1.4225,3810.6,3810.4,0.52486]
[1753887884233,2.3519,3810.6,3810.4,0.52486]
[1753887884528,40.8,3810.9,3810.4,0.52486]
[1753887884529,3.4089,3810.5,3810.4,0.52486]
[1753887885026,3.4089,3810.4,3810.2,0.52489]
[1753887885230,0.9294,3810.1,3810.0,0.52492]
[1753887885530,0.52489,3810.3,3810.0,0.52492]
[1753887885732,0.52489,3810.3,3809.9,0.52493]
[1753887885933,0.52494,3810.0,3809.4,19.183]
[1753887886137,2.1899,3810.0,3809.9,0.52493]
[1753887886326,5.5988,3810.0,3809.9,0.52493]
[1753887886732,2.71484,3810.0,3809.7,0.52496]
[1753887886930,5.5988,3809.2,3809.1,0.52505]
[1753887887132,3.4089,3808.7,3808.5,0.8568]
[1753887887327,40.8,3808.6,3808.4,0.52514]
[1753887887627,3.4089,3808.5,3808.4,0.52514]
[1753887887826,3.4089,3808.5,3808.2,0.52517]
[1753887887827,0.52513,3808.5,3808.2,0.52517]
[1753887888031,3.4089,3808.1,3808.0,19.181]
[1753887888248,2.87711,3808.0,3807.8,0.19433539]
[1753887888435,3.4089,3807.9,3807.8,0.19433539]
[1753887890028,44.2089,3807.9,3807.8,0.19433539]
[1753887891633,44.73412,3807.9,3807.8,0.19433539]
[1753887891831,44.2089,3807.9,3807.8,0.19433539]
[1753887894531,40.8,3807.9,3807.8,1.89523539]
[1753887894832,44.2089,3807.9,3807.8,0.19433539]
[1753887895038,44.2089,3807.9,3807.8,0.71956539]
[1753887895439,44.2089,3807.9,3807.8,0.19433539]
[1753887896542,44.2089,3807.9,3807.8,0.71956539]
[1753887897046,44.2089,3807.9,3807.8,1.51866539]
[1753887897431,44.2089,3807.9,3807.8,0.75276539]
[1753887897637,44.2089,3807.9,3807.8,0.71956539]
[1753887898041,43.1519,3807.9,3807.8,2.42046539]
[1753887898542,0.9252,3808.4,3808.3,0.52516]
[1753887898843,3.236,3808.4,3807.9,0.52522]
[1753887899043,0.9252,3808.2,3807.8,0.21613539]
[1753887899348,3.236,3808.0,3807.8,0.74135539]
[1753887899538,3.236,3807.9,3807.8,0.74135539]
[1753887899942,3.236,3808.2,3808.1,0.7725]
[1753887900141,0.52518,3808.2,3807.9,0.52521]
[1753887900441,3.236,3808.0,3807.9,0.0218]
[1753887901045,44.036,3808.3,3807.8,2.19899065]
[1753887901251,20.0952,3808.6,3808.5,0.52513]
[1753887901442,2.2419,3808.7,3808.6,0.7725]
[1753887901643,2.2419,3809.0,3808.7,1.6763]
[1753887901943,2.2419,3809.0,3808.2,1.31293]
[1753887901944,40.8,3809.1,3808.3,0.52516]
[1753887902243,0.52511,3808.7,3808.3,0.52515]
[1753887902441,0.52509,3808.8,3808.3,0.52515]
[1753887902636,3.236,3808.4,3808.3,0.52515]
[1753887902837,3.236,3808.4,3808.3,0.54695]
[1753887903039,3.236,3808.4,3808.1,1.27588]
[1753887903237,2.3108,3808.0,3807.9,0.52522]
[1753887903436,3.236,3808.0,3807.9,0.52522]
[1753887903639,40.8,3809.1,3808.4,0.54694]
[1753887903842,0.52511,3808.7,3808.4,0.0218]
[1753887904040,3.236,3809.0,3808.4,0.0218]
[1753887904041,0.5251,3808.8,3808.4,0.0218]
[1753887904237,2.2419,3808.6,3808.5,1.6763]
[1753887904550,3.236,3808.6,3808.5,1.6763]
[1753887904748,3.236,3808.5,3808.2,0.0218]
[1753887904947,3.236,3808.4,3808.2,0.0218]
[1753887905245,0.52517,3808.2,3807.8,0.21613539]
[1753887905449,0.52517,3808.2,3807.9,0.0218]
[1753887905642,3.236,3808.0,3807.9,0.54702]
[1753887906041,1.9193,3808.7,3808.5,0.0218]
[1753887906352,2.2419,3808.6,3808.5,1.6763]
[1753887906538,0.52513,3808.5,3807.8,0.19433539]
[1753887906743,1.9193,3808.3,3807.8,0.19433539]
[1753887906939,3.236,3808.1,3807.9,0.0218]
[1753887907142,3.236,3808.0,3807.9,0.54701]
[1753887907339,2.2419,3808.3,3808.1,0.52518]
[1753887907543,3.236,3808.2,3808.1,0.7725]
[1753887907748,0.52516,3808.3,3807.8,1.69556065]
[1753887907955,0.9252,3808.4,3808.0,0.5252]
[1753887908147,0.52522,3807.9,3807.8,0.19433539]
[1753887908348,2.62541,3809.0,3807.2,0.01838597]
[1753887908349,0.5253,3807.4,3807.2,0.01838597]
[1753887908544,44.036,3807.3,3807.2,0.01838597]
[1753887909241,43.0419,3807.3,3807.2,0.04018597]
[1753887909440,44.036,3807.3,3807.2,0.01838597]
[1753887910147,40.8,3807.3,3807.2,3.17411123]
[1753887910345,40.8,3807.3,3807.2,0.01838597]
[1753887910346,44.036,3807.3,3807.2,0.01838597]
[1753887911346,44.036,3807.3,3807.2,0.04018597]
[1753887912141,44.036,3807.3,3807.2,0.01838597]
[1753887914056,42.1167,3807.3,3807.2,1.69468597]
[1753887915243,3.236,3807.7,3807.6,1.27596]
[1753887915451,1.3167,3807.7,3807.6,2.20156]
[1753887915844,43.0419,3807.7,3807.6,2.20156]
[1753887916045,43.0419,3807.7,3807.5,0.52526]
[1753887916046,40.8,3807.7,3807.5,0.52526]
[1753887916348,3.236,3807.6,3807.5,0.52526]
[1753887917151,3.236,3807.3,3807.2,0.01838597]
[1753887917344,1.3167,3807.3,3807.2,1.69468597]
[1753887917550,3.236,3807.3,3807.2,0.01838597]
[1753887919949,3.236,3807.3,3807.2,1.69468597]
[1753887920149,3.236,3807.3,3807.2,0.01838597]
[1753887921655,1.47942526,3806.5,3805.3,0.9038]
[1753887921952,0.52549,3806.0,3805.2,38.5757]
[1753887922150,40.8,3805.9,3805.2,39.5197]
[1753887922751,40.8,3805.9,3805.6,0.52553]
[1753887922962,40.8,3805.9,3805.7,0.52551]
[1753887923154,40.8,3805.9,3805.6,0.52552]
[1753887923355,40.8,3805.9,3805.7,0.52551]
[1753887924251,40.8,3805.9,3805.8,1.69470751]
[1753887924851,3.236,3806.7,3806.4,0.0402]
[1753887925056,3.236,3806.6,3806.5,1.3163]
[1753887925352,40.8,3806.6,3806.5,2.2201]
[1753887925556,2.3108,3807.4,3807.0,2.17983]
[1753887925755,3.236,3807.2,3807.1,0.52532]
[1753887925950,44.036,3807.2,3807.1,0.52532]
[1753887926151,44.036,3807.2,3807.1,0.56552]
[1753887926351,40.8,3807.2,3807.1,2.22002]
[1753887926553,0.9941,3808.2,3807.9,0.5252]
[1753887926751,3.99350032,3808.1,3807.9,0.0402]
[1753887926959,44.036,3808.1,3807.8,0.52522]
[1753887927162,40.8,3808.1,3808.0,0.5252]
[1753887927366,40.8,3808.1,3808.0,2.2199]
[1753887927568,0.5252,3808.0,3807.5,1.6947]
[1753887927863,3.236,3807.3,3806.7,0.0402]
[1753887928060,0.52537,3806.8,3806.3,0.56563]
[1753887928264,0.5254,3806.6,3806.3,0.0402]
[1753887928471,3.2053,3806.4,3806.2,0.9038]
[1753887928664,2.3914,3806.3,3806.0,19.1822]
[1753887928863,3.2859,3806.2,3806.1,0.52546]
[1753887929167,1.4023,3806.2,3806.1,2.14206]
[1753887929368,1.8836,3806.5,3806.2,1.43375]
[1753887929668,1.4023,3806.5,3806.4,2.14202]
[1753887929867,2.2968,3806.5,3806.4,2.14202]
[1753887930070,0.52537,3806.8,3806.3,0.52543]
[1753887930270,0.9891,3806.3,3806.1,2.14206]
[1753887930464,2.2968,3806.2,3806.1,2.14206]
[1753887930663,3.2859,3806.2,3806.1,2.14206]
[1753887930868,0.52543,3806.4,3806.0,0.52547]
[1753887931066,1.47942526,3806.9,3805.8,7.51e-06]
[1753887931265,0.52545,3806.2,3805.8,7.51e-06]
[1753887931773,0.52547,3806.1,3805.8,7.51e-06]
[1753887931961,1.31346,3806.7,3805.8,7.51e-06]
[1753887931962,0.52549,3806.0,3805.8,7.51e-06]
[1753887932366,0.9891,3805.9,3805.8,7.51e-06]
[1753887932577,40.8,3805.9,3805.8,7.51e-06]
[1753887937770,45.8,3805.9,3805.8,7.51e-06]
[1753887939274,45.8,3805.9,3804.2,0.01840047]
[1753887939475,0.52563,3804.9,3804.2,0.01840047]
[1753887939776,3.2859,3804.8,3804.7,0.52565]
[1753887939972,44.0859,3804.8,3804.7,0.52565]
[1753887940670,1.8836,3804.7,3804.6,0.9083]
[1753887940869,42.2023,3804.8,3804.6,0.9083]
[1753887941076,40.8,3804.8,3804.7,0.9083]
[1753887941277,40.8,3804.8,3804.7,1.6166]
[1753887941582,41.32564,3804.8,3804.7,1.6166]
[1753887941967,40.8,3804.8,3804.7,2.14226]
[1753887942170,40.8,3804.8,3804.7,1.6166]
[1753887942677,0.52564,3804.9,3804.7,1.6166]
[1753887942877,0.52564,3804.9,3804.8,1.6166]
[1753887943072,0.52554,3805.6,3804.7,0.9083]
[1753887943279,3.2859,3805.8,3805.3,0.52556]
[1753887943280,40.8,3805.5,3805.3,0.52556]
[1753887943475,40.8,3805.5,3805.4,1.6166]
[1753887944582,1.51457,3806.1,3805.9,1.6166]
[1753887944583,1.4023,3806.0,3805.9,1.6166]
[1753887944980,42.2023,3806.0,3805.9,1.6166]
[1753887945176,44.0859,3806.0,3805.9,0.0048]
[1753887946170,44.0859,3806.0,3805.9,1.6166]
[1753887946378,40.8,3806.0,3805.9,1.6166]
[1753887946678,3.2859,3807.0,3806.3,0.52543]
[1753887946884,1.4023,3806.8,3806.3,0.52543]
[1753887947078,19.125,3806.9,3806.3,0.52543]
[1753887947275,0.52543,3806.4,3806.1,0.52546]
[1753887947479,1.4023,3806.4,3806.3,1.6166]
[1753887947675,0.8945,3806.6,3806.5,0.0048]
[1753887947879,0.8945,3806.6,3806.5,1.6166]
[1753887948084,3.2859,3806.6,3806.5,1.6166]
[1753887948385,1.4023,3806.6,3806.5,1.6166]
[1753887948588,1.4023,3806.6,3806.5,0.0048]
[1753887948789,3.2859,3806.6,3806.5,1.6166]
[1753887949087,3.2859,3806.6,3806.5,2.14201]
[1753887949284,3.2859,3806.6,3806.5,1.6166]
[1753887949588,3.2859,3806.6,3806.5,1.23371]
[1753887949786,3.2859,3806.6,3806.5,2.14201]
[1753887950776,2.3914,3807.0,3806.9,0.52535]
[1753887950980,44.0859,3807.0,3806.9,0.52535]
[1753887951176,5.5044,3806.9,3806.8,1.10876]
[1753887951585,5.5044,3806.9,3806.8,2.67916]
[1753887952081,40.8,3807.0,3806.8,3.59506]
[1753887952280,40.8,3807.0,3806.9,3.0697]
[1753887952986,41.32534,3807.0,3806.9,3.0697]
[1753887953177,0.52534,3807.0,3806.9,3.0697]
[1753887953578,0.52532,3807.2,3806.9,3.59505]
[1753887953782,0.52532,3807.2,3807.1,3.0697]
[1753887954288,6.02972,3807.2,3807.1,3.0697]
[1753887954484,6.02972,3807.2,3807.1,2.1614]
[1753887954789,6.02972,3807.2,3807.1,1.4503]
[1753887955779,2.4601,3806.6,3806.5,0.5834]
[1753887955982,3.2076,3806.6,3806.5,0.5834]
[1753887956182,3.2076,3806.6,3805.9,1.31374]
[1753887956183,2.4913,3806.5,3806.0,1.47942526]
[1753887956390,0.5765,3806.2,3806.1,19.108]
[1753887956692,0.8945,3806.6,3806.5,0.52541]
[1753887956889,2.2968,3806.6,3806.5,0.56251]
[1753887957184,0.8945,3806.6,3806.5,0.56251]
[1753887958190,2.2968,3806.6,3806.5,0.1055]
[1753887958486,40.8,3807.3,3806.2,0.56414]
[1753887958487,5.5044,3806.3,3806.2,0.56414]
[1753887958685,5.5044,3806.3,3806.2,0.62114]
[1753887959791,2.1873,3806.3,3805.8,37.842]
[1753887959983,0.52548,3806.0,3805.8,37.842]
[1753887960181,2.2227,3805.3,3805.2,0.60107]
[1753887960383,2.79309526,3806.1,3805.0,0.52561]
[1753887960384,1.0337,3805.1,3805.0,0.52561]
[1753887960587,0.9288,3805.1,3805.0,0.56041]
[1753887961289,41.7288,3805.3,3805.2,0.56039]
[1753887961590,1.3485,3805.7,3805.6,0.56033]
[1753887961793,2.3822,3806.1,3806.0,0.54038]
[1753887961983,1.3485,3806.1,3806.0,0.56028]
[1753887962188,2.2773,3806.1,3806.0,0.56028]
[1753887963193,1.0337,3806.0,3805.9,0.52548]
[1753887963489,1.0337,3806.0,3805.9,0.54038]
[1753887963790,42.11356,3806.5,3805.6,19.1]
[1753887963989,2.3822,3805.9,3805.2,3.20970318]
[1753887964195,20.57642526,3806.4,3805.6,0.52552]
[1753887964396,20.57642526,3806.4,3805.6,0.54042]
[1753887964397,3.311,3805.9,3805.6,0.54042]
[1753887964694,2.3822,3805.7,3805.6,0.0149]
[1753887964886,0.9288,3805.7,3805.6,0.0149]
[1753887965087,2.2773,3805.7,3805.6,0.0348]
[1753887965392,3.311,3805.7,3805.6,0.0348]
[1753887965793,1.9625,3806.3,3805.6,0.0348]
[1753887966090,2.3822,3806.0,3805.7,0.0149]
[1753887966292,1.0337,3806.2,3805.7,0.52551]
[1753887966496,1.0337,3806.2,3805.3,19.096]
[1753887966497,1.0337,3805.8,3805.6,0.52552]
[1753887966792,3.311,3805.6,3805.0,1.31405]
[1753887966993,3.311,3805.4,3805.3,0.52557]
[1753887967293,3.311,3805.3,3804.1,0.0149]
[1753887967489,1.3485,3805.0,3804.3,19.094]
[1753887967686,3.311,3805.0,3804.4,1.31425]
[1753887967892,0.9288,3804.4,3804.2,0.01840047]
[1753887968195,3.311,3804.3,3804.2,0.01840047]
[1753887968389,4.79042526,3804.3,3803.8,3.40424292]
[1753887968591,1.47942526,3804.3,3803.8,3.40424292]
[1753887968896,0.9288,3803.9,3803.8,0.72030974]
[1753887969091,3.311,3803.9,3803.8,0.72030974]
[1753887969693,44.111,3803.9,3803.8,0.19453974]
[1753887969893,40.8,3803.9,3803.1,4.5942716]
[1753887970091,40.8,3803.9,3803.4,0.52583]
[1753887970092,3.311,3803.8,3803.4,0.52583]
[1753887970293,3.311,3803.7,3803.4,0.52583]
[1753887970589,1.9625,3803.3,3803.0,4.5942716]
[1753887970793,1.9625,3803.1,3802.6,4.5942716]
[1753887970997,1.3485,3802.7,3802.6,4.5942716]
[1753887971198,2.88371869,3802.7,3802.6,5.1202216]
[1753887971703,43.68371869,3802.7,3802.6,5.1202216]
[1753887972996,42.7625,3802.7,3802.6,6.5441216]
[1753887973201,1.3485,3804.0,3803.9,0.52576]
[1753887973897,1.3485,3804.0,3803.7,0.52578]
[1753887974097,1.3485,3804.0,3803.1,3.3274]
[1753887974293,1.3485,3804.0,3802.6,5.97305524]
[1753887974294,1.47942526,3803.2,3802.8,0.52592]
[1753887974498,1.3485,3803.0,3802.8,0.52592]
[1753887974690,1.3485,3802.9,3802.8,0.52592]
[1753887974997,1.3485,3802.8,3802.7,0.52593]
[1753887975301,44.111,3802.8,3802.7,0.52593]
[1753887977495,44.111,3802.8,3802.6,0.52594]
[1753887977694,3.311,3802.7,3802.6,0.52594]
[1753887978300,3.311,3802.6,3802.5,0.52596]
[1753887980099,40.8,3802.8,3802.7,3.85333]
[1753887980698,2.3822,3803.2,3802.7,1.4239]
[1753887980895,1.3485,3803.0,3802.7,1.4239]
[1753887981097,40.8,3802.9,3802.8,3.85332]
[1753887981399,21.0535,3803.6,3803.5,3.85322]
[1753887981605,1.9625,3803.6,3802.7,1.47942526]
[1753887981800,1.3485,3803.5,3802.8,3.3274]
[1753887981996,3.311,3803.5,3803.4,0.52584]
[1753887982298,3.311,3803.3,3802.9,3.3274]
[1753887982507,3.311,3803.4,3802.5,0.8615]
[1753887982698,0.9288,3803.4,3802.5,0.8615]
[1753887982902,3.311,3803.3,3802.5,0.8615]
[1753887983104,42.27942526,3803.5,3802.5,0.8615]
[1753887983105,3.311,3803.2,3802.5,0.8615]
[1753887983405,0.5259,3803.0,3802.6,0.52593]
[1753887983604,0.5259,3803.0,3802.6,3.85333]
[1753887983605,3.311,3802.8,3802.6,3.85333]
[1753887984013,3.311,3802.8,3802.6,2.42943]
[1753887984306,3.311,3802.8,3802.7,2.4659]
[1753887984509,0.52586,3803.3,3802.7,3.3274]
[1753887985199,3.83689,3803.1,3802.8,3.85332]
[1753887985503,1.9625,3803.0,3802.9,2.4659]
[1753887985708,3.311,3803.0,3802.9,2.4659]
[1753887986100,3.311,3803.0,3802.9,3.3274]
[1753887987100,3.311,3803.0,3802.9,2.4659]
[1753887987408,3.311,3803.0,3802.7,3.3274]
[1753887987409,1.9625,3802.8,3802.7,3.3274]
[1753887987610,0.9288,3802.8,3802.7,3.3274]
[1753887987809,1.0337,3802.9,3802.8,2.4659]
[1753887988006,0.9288,3802.9,3802.8,3.3274]
[1753887988204,0.52587,3803.2,3803.0,0.52588]
[1753887988415,0.9288,3803.1,3803.0,3.3274]
[1753887988712,1.9629,3803.1,3803.0,3.3274]
[1753887989005,0.52586,3803.3,3803.1,3.39]
[1753887989214,3.3598,3803.2,3803.1,3.39]
[1753887989406,3.3598,3803.4,3802.8,2.4724]
[1753887989604,1.0341,3803.0,3802.9,2.99829]
[1753887989807,1.9659,3803.0,3802.9,3.91589]
[1753887990003,1.9659,3803.0,3802.9,3.39]
[1753887990406,1.3939,3803.3,3802.9,3.39]
[1753887990600,1.9659,3803.2,3802.8,1.3148]
[1753887990800,1.9659,3803.2,3803.1,2.84966]
[1753887991005,3.88568,3803.1,3803.0,0.52588]
[1753887991204,3.88568,3803.1,3802.9,0.5259]
[1753887991410,0.52589,3803.0,3802.7,1.4062]
[1753887991709,1.0341,3802.9,3802.8,1.93212]
[1753887991910,2.428,3803.1,3802.9,1.9321]
[1753887992102,3.3598,3803.0,3802.9,2.4724]
[1753887992302,3.3598,3803.0,3802.9,3.39]
[1753887992505,3.3598,3803.0,3802.8,0.52591]
[1753887992701,3.3598,3803.0,3801.2,0.018415]
[1753887992916,5.36526526,3801.9,3801.4,2.4724]
[1753887993112,3.88584,3801.9,3801.4,2.4724]
[1753887993406,44.68584,3801.9,3801.3,0.52612]
[1753887993613,44.68584,3801.9,3801.8,3.58464208]
[1753887993909,44.68584,3801.9,3801.8,0.19464208]
[1753887994114,3.88593,3801.3,3801.2,0.018415]
[1753887994418,3.88593,3801.3,3800.5,3.39]